[Event "*** Titled Tuesday Blitz"]
[Site "Chess.com"]
[Date "2020.05.19"]
[Round "5"]
[White "szachuspl"]
[Black "Gabrielian_Artur"]
[Result "0-1"]
[WhiteElo "2546"]
[BlackElo "2721"]
[TimeControl "180+1"]
[EndTime "12:57:23 PDT"]
[Termination "Gabrielian_Artur won on time"]

1. d4 {[%clk 0:03:00.9]} 1... Nf6 {[%clk 0:02:59.6]} 2. c4 {[%clk 0:03:00.3]}
2... c5 {[%clk 0:02:59.4]} 3. d5 {[%clk 0:03:00.3]} 3... e6 {[%clk 0:02:59.6]}
4. Nc3 {[%clk 0:03:00.1]} 4... exd5 {[%clk 0:02:59.9]} 5. cxd5 {[%clk
0:03:00.2]} 5... d6 {[%clk 0:03:00.5]} 6. Nf3 {[%clk 0:03:00.5]} 6... g6 {[%clk
0:03:00.8]} 7. Bf4 {[%clk 0:02:57.9]} 7... Bg7 {[%clk 0:03:00.5]} 8. e3 {[%clk
0:02:58.4]} 8... O-O {[%clk 0:02:59.8]} 9. Be2 {[%clk 0:02:52.8]} 9... Re8
{[%clk 0:02:56.7]} 10. O-O {[%clk 0:02:49]} 10... Na6 {[%clk 0:02:50.5]} 11. Nd2
{[%clk 0:02:46.4]} 11... Nc7 {[%clk 0:02:33.5]} 12. Nc4 {[%clk 0:02:42.3]} 12...
Bf8 {[%clk 0:02:33]} 13. a4 {[%clk 0:02:39.5]} 13... Ne4 {[%clk 0:02:29.1]} 14.
Bf3 {[%clk 0:02:26.4]} 14... Nxc3 {[%clk 0:02:14.9]} 15. bxc3 {[%clk 0:02:27.3]}
15... b6 {[%clk 0:02:15.3]} 16. Re1 {[%clk 0:02:18.6]} 16... Ba6 {[%clk
0:02:14.6]} 17. Be2 {[%clk 0:02:08.5]} 17... Bxc4 {[%clk 0:02:13.9]} 18. Bxc4
{[%clk 0:02:08.2]} 18... Bg7 {[%clk 0:02:14]} 19. Qd3 {[%clk 0:02:04.6]} 19...
Qf6 {[%clk 0:02:04.2]} 20. Ra3 {[%clk 0:01:54]} 20... a6 {[%clk 0:02:02.5]} 21.
Rb1 {[%clk 0:01:53.1]} 21... b5 {[%clk 0:01:00.1]} 22. axb5 {[%clk 0:01:37.9]}
22... axb5 {[%clk 0:01:00.1]} 23. Rxa8 {[%clk 0:01:36.9]} 23... Rxa8 {[%clk
0:00:59.9]} 24. Bxb5 {[%clk 0:01:35.9]} 24... Ra3 {[%clk 0:00:43.2]} 25. Bc6
{[%clk 0:01:26.7]} 25... h5 {[%clk 0:00:42.2]} 26. h4 {[%clk 0:00:59.6]} 26...
Rxc3 {[%clk 0:00:41.4]} 27. Qd1 {[%clk 0:00:59.5]} 27... Na6 {[%clk 0:00:31]}
28. g3 {[%clk 0:00:54.6]} 28... Nb4 {[%clk 0:00:30.6]} 29. Qa4 {[%clk
0:00:41.2]} 29... Kh7 {[%clk 0:00:26.3]} 30. Qa7 {[%clk 0:00:27]} 30... Qf5
{[%clk 0:00:19]} 31. Rd1 {[%clk 0:00:21.1]} 31... Nd3 {[%clk 0:00:19]} 32. Qa4
{[%clk 0:00:13.1]} 32... Nxf4 {[%clk 0:00:18.5]} 33. Qxf4 {[%clk 0:00:10.5]}
33... Qxf4 {[%clk 0:00:18.9]} 34. gxf4 {[%clk 0:00:07.1]} 34... Bf6 {[%clk
0:00:18.9]} 35. Be8 {[%clk 0:00:03.3]} 35... Kg7 {[%clk 0:00:18.5]} 36. Rd2
{[%clk 0:00:03.3]} 36... Bxh4 {[%clk 0:00:17.7]} 37. Kg2 {[%clk 0:00:03.8]}
37... Ra3 {[%clk 0:00:16.4]} 38. Rb2 {[%clk 0:00:03.5]} 38... Ra7 {[%clk
0:00:16.4]} 39. Bc6 {[%clk 0:00:01.7]} 39... Bf6 {[%clk 0:00:16]} 0-1

[Event "*** Titled Tuesday Blitz"]
[Site "Chess.com"]
[Date "2020.05.19"]
[Round "5"]
[White "Khamrakulov_Djurabek"]
[Black "Joshukid"]
[Result "1-0"]
[WhiteElo "2798"]
[BlackElo "2549"]
[TimeControl "180+1"]
[EndTime "12:57:23 PDT"]
[Termination "Khamrakulov_Djurabek won on time"]

1. e4 {[%clk 0:03:00.9]} 1... g6 {[%clk 0:02:55.3]} 2. d4 {[%clk 0:03:00.8]}
2... Bg7 {[%clk 0:02:53.1]} 3. Nf3 {[%clk 0:02:58.5]} 3... d6 {[%clk 0:02:50.9]}
4. Bc4 {[%clk 0:02:58.4]} 4... Nf6 {[%clk 0:02:47.8]} 5. Qe2 {[%clk 0:02:58.1]}
5... Bg4 {[%clk 0:02:47.9]} 6. e5 {[%clk 0:02:57.5]} 6... dxe5 {[%clk
0:02:46.3]} 7. Bxf7+ {[%clk 0:02:51.5]} 7... Kxf7 {[%clk 0:02:45.3]} 8. Nxe5+
{[%clk 0:02:50.9]} 8... Ke8 {[%clk 0:02:41.4]} 9. Nxg4 {[%clk 0:02:50.8]} 9...
Nxg4 {[%clk 0:02:42.3]} 10. Qxg4 {[%clk 0:02:50.1]} 10... Qxd4 {[%clk
0:02:35.6]} 11. Qc8+ {[%clk 0:02:44]} 11... Kf7 {[%clk 0:02:35.8]} 12. Qxb7
{[%clk 0:02:43.7]} 12... Qe5+ {[%clk 0:02:34.4]} 13. Be3 {[%clk 0:02:29.3]}
13... Qxb2 {[%clk 0:02:27]} 14. Qxa8 {[%clk 0:01:58.1]} 14... Qxa1 {[%clk
0:02:17.2]} 15. O-O {[%clk 0:01:57.8]} 15... Qxa2 {[%clk 0:02:01.9]} 16. Nd2
{[%clk 0:01:57.5]} 16... Qxc2 {[%clk 0:01:58.7]} 17. Ne4 {[%clk 0:01:45.8]}
17... h6 {[%clk 0:01:32.2]} 18. Rc1 {[%clk 0:01:43.2]} 18... Rd8 {[%clk
0:01:32.8]} 19. g3 {[%clk 0:00:41]} 19... Rd1+ {[%clk 0:01:30.6]} 20. Rxd1
{[%clk 0:00:41.4]} 20... Qxd1+ {[%clk 0:01:31.5]} 21. Kg2 {[%clk 0:00:41.9]}
21... Nd7 {[%clk 0:01:10.7]} 22. Qxa7 {[%clk 0:00:41.9]} 22... Qc2 {[%clk
0:01:08.6]} 23. Qb7 {[%clk 0:00:35.1]} 23... Qc4 {[%clk 0:00:38.3]} 24. Nd2
{[%clk 0:00:34.7]} 24... Qc2 {[%clk 0:00:38.3]} 25. Qd5+ {[%clk 0:00:34.1]}
25... Ke8 {[%clk 0:00:36.9]} 26. Qg8+ {[%clk 0:00:34.1]} 26... Bf8 {[%clk
0:00:37.1]} 27. Bxh6 {[%clk 0:00:34.6]} 27... Qc6+ {[%clk 0:00:32.9]} 28. Kh3
{[%clk 0:00:33.9]} 28... Qf6 {[%clk 0:00:29.5]} 29. Be3 {[%clk 0:00:25.7]} 29...
Qf7 {[%clk 0:00:22.7]} 30. Qh8 {[%clk 0:00:22.6]} 30... Qf5+ {[%clk 0:00:16.3]}
31. g4 {[%clk 0:00:21.1]} 31... Qf6 {[%clk 0:00:15.3]} 32. Qh7 {[%clk
0:00:19.9]} 32... Qf7 {[%clk 0:00:11.1]} 33. Qh4 {[%clk 0:00:19.4]} 33... Bg7
{[%clk 0:00:11.2]} 34. Qg3 {[%clk 0:00:19]} 34... e5 {[%clk 0:00:09.7]} 35. Ne4
{[%clk 0:00:18.1]} 35... Qe7 {[%clk 0:00:07.6]} 36. Qf3 {[%clk 0:00:17.3]} 36...
Qf7 {[%clk 0:00:07.2]} 37. Qe2 {[%clk 0:00:16.2]} 37... Qd5 {[%clk 0:00:07.3]}
38. Qc2 {[%clk 0:00:15.1]} 38... c6 {[%clk 0:00:02.6]} 39. Ng5 {[%clk
0:00:14.9]} 39... Qd6 {[%clk 0:00:02.4]} 40. Qc4 {[%clk 0:00:14]} 1-0

[Event "*** Titled Tuesday Blitz"]
[Site "Chess.com"]
[Date "2020.05.19"]
[Round "5"]
[White "BanjoKazooieN64"]
[Black "Corpescador"]
[Result "1-0"]
[WhiteElo "2543"]
[BlackElo "2370"]
[TimeControl "180+1"]
[EndTime "12:57:23 PDT"]
[Termination "BanjoKazooieN64 won on time"]

1. e4 {[%clk 0:03:00.9]} 1... c5 {[%clk 0:02:59.9]} 2. d4 {[%clk 0:03:01]} 2...
cxd4 {[%clk 0:02:59.6]} 3. c3 {[%clk 0:03:01.6]} 3... dxc3 {[%clk 0:03:00.5]} 4.
Nxc3 {[%clk 0:03:02.1]} 4... Nc6 {[%clk 0:03:00.9]} 5. Nf3 {[%clk 0:03:02.8]}
5... a6 {[%clk 0:03:01.4]} 6. Bc4 {[%clk 0:03:03.4]} 6... d6 {[%clk 0:03:00.9]}
7. O-O {[%clk 0:03:03.2]} 7... Nf6 {[%clk 0:03:01.1]} 8. h3 {[%clk 0:03:03.6]}
8... e6 {[%clk 0:02:55]} 9. Bg5 {[%clk 0:03:03.7]} 9... b5 {[%clk 0:02:50.2]}
10. Bb3 {[%clk 0:03:03.4]} 10... Be7 {[%clk 0:02:47.8]} 11. Re1 {[%clk
0:03:01.1]} 11... Bd7 {[%clk 0:02:34.1]} 12. Qd2 {[%clk 0:03:01.2]} 12... Qc7
{[%clk 0:02:24.2]} 13. Rad1 {[%clk 0:03:00.8]} 13... Rd8 {[%clk 0:02:23.3]} 14.
Bxf6 {[%clk 0:02:59]} 14... gxf6 {[%clk 0:02:21.2]} 15. Qh6 {[%clk 0:02:58.3]}
15... Rg8 {[%clk 0:01:42.1]} 16. Qxh7 {[%clk 0:02:56.9]} 16... Kf8 {[%clk
0:01:42.3]} 17. h4 {[%clk 0:02:49.3]} 17... Ne5 {[%clk 0:01:28.9]} 18. Nd4
{[%clk 0:02:41.2]} 18... Ng6 {[%clk 0:01:10.1]} 19. Qh6+ {[%clk 0:02:30.7]}
19... Ke8 {[%clk 0:01:09.1]} 20. h5 {[%clk 0:02:00.2]} 20... Rh8 {[%clk
0:00:53.6]} 21. Qg7 {[%clk 0:01:56]} 21... Rxh5 {[%clk 0:00:53]} 22. Nxe6 {[%clk
0:01:50.7]} 22... Bxe6 {[%clk 0:00:34.4]} 23. Bxe6 {[%clk 0:01:49.8]} 23... Bf8
{[%clk 0:00:34.3]} 24. Nd5 {[%clk 0:01:14.5]} 24... Bxg7 {[%clk 0:00:29.6]} 25.
Nxc7+ {[%clk 0:01:12.7]} 25... Kf8 {[%clk 0:00:30.1]} 26. Bf5 {[%clk 0:01:09.2]}
26... Nf4 {[%clk 0:00:27.6]} 27. g3 {[%clk 0:01:05.3]} 27... Nh3+ {[%clk
0:00:24.8]} 28. Kg2 {[%clk 0:01:05]} 28... Ng5 {[%clk 0:00:25]} 29. f4 {[%clk
0:01:01.6]} 29... Nh7 {[%clk 0:00:17.5]} 30. Rh1 {[%clk 0:01:00.4]} 30... Rxh1
{[%clk 0:00:08.7]} 31. Rxh1 {[%clk 0:01:00.1]} 31... Ng5 {[%clk 0:00:08.1]} 32.
fxg5 {[%clk 0:00:59.7]} 32... fxg5 {[%clk 0:00:09]} 33. b3 {[%clk 0:00:56.8]}
33... Bd4 {[%clk 0:00:08.6]} 34. Rc1 {[%clk 0:00:50.9]} 34... Bc5 {[%clk
0:00:08.2]} 35. Nxa6 {[%clk 0:00:48.2]} 35... Ba3 {[%clk 0:00:07.3]} 36. Rd1
{[%clk 0:00:43.6]} 36... Kg7 {[%clk 0:00:03.9]} 37. Nc7 {[%clk 0:00:42.8]} 37...
Bc5 {[%clk 0:00:03.7]} 38. Nxb5 {[%clk 0:00:41.7]} 38... Ra8 {[%clk 0:00:03.1]}
39. a4 {[%clk 0:00:41.2]} 39... Ra6 {[%clk 0:00:03.1]} 40. Rd5 {[%clk
0:00:34.8]} 40... Kf6 {[%clk 0:00:03.1]} 41. Bg4 {[%clk 0:00:34.1]} 41... Bb4
{[%clk 0:00:03.3]} 42. Rf5+ {[%clk 0:00:33.8]} 42... Kg6 {[%clk 0:00:03.2]} 43.
Rd5 {[%clk 0:00:33.3]} 43... Rc6 {[%clk 0:00:03.1]} 44. Nd4 {[%clk 0:00:27.5]}
44... Rc3 {[%clk 0:00:01.4]} 45. Be2 {[%clk 0:00:21.9]} 1-0

[Event "*** Titled Tuesday Blitz"]
[Site "Chess.com"]
[Date "2020.05.19"]
[Round "5"]
[White "Everyfishknows"]
[Black "svilson23"]
[Result "1-0"]
[WhiteElo "2397"]
[BlackElo "2219"]
[TimeControl "180+1"]
[EndTime "12:57:23 PDT"]
[Termination "Everyfishknows won on time"]

1. Nf3 {[%clk 0:02:49.8]} 1... b6 {[%clk 0:02:59.5]} 2. d4 {[%clk 0:02:47.9]}
2... Bb7 {[%clk 0:02:59.6]} 3. c4 {[%clk 0:02:47.9]} 3... e6 {[%clk 0:02:59]} 4.
Nc3 {[%clk 0:02:47.9]} 4... f5 {[%clk 0:02:59.1]} 5. g3 {[%clk 0:02:45.8]} 5...
Nf6 {[%clk 0:02:59.2]} 6. Bg2 {[%clk 0:02:45.9]} 6... Bb4 {[%clk 0:02:59.5]} 7.
O-O {[%clk 0:02:45.9]} 7... O-O {[%clk 0:02:58.9]} 8. Qc2 {[%clk 0:02:37.2]}
8... Ne4 {[%clk 0:02:54.5]} 9. Bd2 {[%clk 0:02:24.6]} 9... Nxd2 {[%clk
0:02:50.9]} 10. Nxd2 {[%clk 0:02:24.6]} 10... Bxg2 {[%clk 0:02:49.7]} 11. Kxg2
{[%clk 0:02:25.5]} 11... f4 {[%clk 0:02:40.2]} 12. Qe4 {[%clk 0:01:59.7]} 12...
Nc6 {[%clk 0:02:39.7]} 13. gxf4 {[%clk 0:01:54.1]} 13... Qh4 {[%clk 0:02:38.5]}
14. e3 {[%clk 0:01:47.3]} 14... Rf6 {[%clk 0:02:34.9]} 15. Nf3 {[%clk
0:01:34.3]} 15... Qh5 {[%clk 0:02:02.6]} 16. Ne2 {[%clk 0:01:25.6]} 16... Rg6+
{[%clk 0:01:57]} 17. Ng3 {[%clk 0:01:23.8]} 17... Rf8 {[%clk 0:01:48.4]} 18. Ne5
{[%clk 0:01:02]} 18... Nxe5 {[%clk 0:01:38.6]} 19. dxe5 {[%clk 0:00:58.8]} 19...
Be7 {[%clk 0:01:31.5]} 20. Rad1 {[%clk 0:00:56.9]} 20... d6 {[%clk 0:01:22.8]}
21. exd6 {[%clk 0:00:52.3]} 21... cxd6 {[%clk 0:01:23.1]} 22. Qxe6+ {[%clk
0:00:39.7]} 22... Rf7 {[%clk 0:00:57.8]} 23. Qe4 {[%clk 0:00:23.9]} 23... Qh4
{[%clk 0:00:52.3]} 24. Rd5 {[%clk 0:00:20.9]} 24... Rh6 {[%clk 0:00:49.4]} 25.
Rh1 {[%clk 0:00:18.7]} 25... Qh3+ {[%clk 0:00:47.9]} 26. Kg1 {[%clk 0:00:19.3]}
26... Bh4 {[%clk 0:00:36.7]} 27. Qg2 {[%clk 0:00:18.8]} 27... Qe6 {[%clk
0:00:24.5]} 28. Qe4 {[%clk 0:00:14.2]} 28... Qh3 {[%clk 0:00:21]} 29. Qg2 {[%clk
0:00:13.8]} 29... Qe6 {[%clk 0:00:18]} 30. Kf1 {[%clk 0:00:14]} 30... Bf6 {[%clk
0:00:11.4]} 31. Ke2 {[%clk 0:00:11.9]} 31... Bxb2 {[%clk 0:00:10.6]} 32. Rhd1
{[%clk 0:00:10.6]} 32... Ba3 {[%clk 0:00:08.8]} 33. Qe4 {[%clk 0:00:09.8]} 33...
Qg4+ {[%clk 0:00:05.3]} 34. Qf3 {[%clk 0:00:09.7]} 34... Qe6 {[%clk 0:00:02.9]}
35. Qe4 {[%clk 0:00:07.2]} 35... Qg4+ {[%clk 0:00:01.7]} 36. Qf3 {[%clk
0:00:07.5]} 36... Qe6 {[%clk 0:00:01.5]} 37. Nf1 {[%clk 0:00:06.6]} 37... Qf5
{[%clk 0:00:01.2]} 38. Rxf5 {[%clk 0:00:05.6]} 38... Rxf5 {[%clk 0:00:01.9]} 39.
Qe4 {[%clk 0:00:05.4]} 1-0

[Event "*** Titled Tuesday Blitz"]
[Site "Chess.com"]
[Date "2020.05.19"]
[Round "5"]
[White "Chuchofrio1"]
[Black "GameOverBro"]
[Result "0-1"]
[WhiteElo "2254"]
[BlackElo "2513"]
[TimeControl "180+1"]
[EndTime "12:57:24 PDT"]
[Termination "GameOverBro won on time"]

1. d4 {[%clk 0:03:00.9]} 1... d6 {[%clk 0:03:00.9]} 2. c4 {[%clk 0:03:00.7]}
2... Nf6 {[%clk 0:03:01.6]} 3. Nc3 {[%clk 0:03:00.1]} 3... Nbd7 {[%clk
0:03:02.5]} 4. e4 {[%clk 0:02:59.9]} 4... e5 {[%clk 0:03:03.4]} 5. Nf3 {[%clk
0:02:58.1]} 5... c6 {[%clk 0:03:03.8]} 6. Be2 {[%clk 0:02:55.6]} 6... Be7 {[%clk
0:03:04.2]} 7. O-O {[%clk 0:02:54]} 7... a5 {[%clk 0:03:04.9]} 8. b3 {[%clk
0:02:53.8]} 8... O-O {[%clk 0:03:03.8]} 9. Bb2 {[%clk 0:02:54]} 9... Qc7 {[%clk
0:03:04.2]} 10. Rc1 {[%clk 0:02:53.9]} 10... Re8 {[%clk 0:03:04.6]} 11. Nb1
{[%clk 0:02:54]} 11... exd4 {[%clk 0:03:04.6]} 12. Bxd4 {[%clk 0:02:51.4]} 12...
Nxe4 {[%clk 0:03:02.9]} 13. Bd3 {[%clk 0:02:48.8]} 13... Ndc5 {[%clk 0:02:59]}
14. Bc2 {[%clk 0:02:38.3]} 14... Bg4 {[%clk 0:02:50.8]} 15. Nc3 {[%clk
0:02:27.8]} 15... Bf6 {[%clk 0:02:40.6]} 16. Nxe4 {[%clk 0:02:11.3]} 16... Nxe4
{[%clk 0:02:29.1]} 17. Re1 {[%clk 0:02:04.1]} 17... Bxd4 {[%clk 0:02:19.6]} 18.
Qxd4 {[%clk 0:02:02.5]} 18... Bxf3 {[%clk 0:02:19.4]} 19. gxf3 {[%clk
0:02:01.9]} 19... Nf6 {[%clk 0:01:48]} 20. Qh4 {[%clk 0:01:55.5]} 20... Qd7
{[%clk 0:01:40.8]} 21. Kh1 {[%clk 0:01:50.4]} 21... Rxe1+ {[%clk 0:01:31]} 22.
Rxe1 {[%clk 0:01:51.3]} 22... Re8 {[%clk 0:01:25.5]} 23. Rg1 {[%clk 0:01:48.5]}
23... Qe6 {[%clk 0:01:24.1]} 24. Qh6 {[%clk 0:01:17.4]} 24... g6 {[%clk
0:01:20.3]} 25. f4 {[%clk 0:01:17.7]} 25... Qe2 {[%clk 0:01:14]} 26. Bd1 {[%clk
0:01:03.8]} 26... Qxf2 {[%clk 0:01:08.9]} 27. Qg5 {[%clk 0:00:58.3]} 27... Re1
{[%clk 0:00:56.8]} 28. f5 {[%clk 0:00:48.6]} 28... Rxd1 {[%clk 0:00:39.5]} 29.
Rxd1 {[%clk 0:00:41.2]} 29... Qf3+ {[%clk 0:00:39.6]} 30. Kg1 {[%clk 0:00:41.3]}
30... Qxd1+ {[%clk 0:00:39.6]} 31. Kg2 {[%clk 0:00:41.8]} 31... Qe2+ {[%clk
0:00:35.6]} 32. Kg1 {[%clk 0:00:38.9]} 32... Qd1+ {[%clk 0:00:25]} 33. Kg2
{[%clk 0:00:37.2]} 33... Qc2+ {[%clk 0:00:24.7]} 34. Kg1 {[%clk 0:00:37.2]}
34... Qb1+ {[%clk 0:00:24.7]} 35. Kg2 {[%clk 0:00:36.7]} 35... Qxa2+ {[%clk
0:00:24.8]} 36. Kg1 {[%clk 0:00:35.7]} 36... Qb1+ {[%clk 0:00:25]} 37. Kg2
{[%clk 0:00:35.6]} 37... Qxf5 {[%clk 0:00:24.9]} 38. Qe3 {[%clk 0:00:31.1]}
38... Ne4 {[%clk 0:00:24.5]} 39. h3 {[%clk 0:00:23.2]} 39... b5 {[%clk
0:00:23.7]} 40. Qb6 {[%clk 0:00:21.2]} 40... a4 {[%clk 0:00:23.4]} 41. Qd8+
{[%clk 0:00:21]} 41... Kg7 {[%clk 0:00:23]} 42. Qh4 {[%clk 0:00:19.7]} 42...
axb3 {[%clk 0:00:21.7]} 43. cxb5 {[%clk 0:00:19.4]} 43... cxb5 {[%clk
0:00:21.7]} 44. Qe1 {[%clk 0:00:18.2]} 44... b2 {[%clk 0:00:21.4]} 45. h4 {[%clk
0:00:17.6]} 45... b1=Q {[%clk 0:00:21.2]} 46. Qxb1 {[%clk 0:00:17.2]} 46... Qf2+
{[%clk 0:00:21.3]} 0-1

[Event "*** Titled Tuesday Blitz"]
[Site "Chess.com"]
[Date "2020.05.19"]
[Round "5"]
[White "LionTheLeon_06"]
[Black "BocharovD"]
[Result "0-1"]
[WhiteElo "2685"]
[BlackElo "2850"]
[TimeControl "180+1"]
[EndTime "12:57:28 PDT"]
[Termination "BocharovD won by resignation"]

1. Nf3 {[%clk 0:03:00.9]} 1... c5 {[%clk 0:02:59.2]} 2. g3 {[%clk 0:03:00.6]}
2... Nc6 {[%clk 0:02:57.6]} 3. Bg2 {[%clk 0:03:00.7]} 3... g6 {[%clk 0:02:57.6]}
4. O-O {[%clk 0:02:59.7]} 4... Bg7 {[%clk 0:02:57.2]} 5. c3 {[%clk 0:02:58]}
5... e5 {[%clk 0:02:56.7]} 6. e4 {[%clk 0:02:56.7]} 6... Nge7 {[%clk 0:02:55.8]}
7. d3 {[%clk 0:02:56.2]} 7... O-O {[%clk 0:02:54.8]} 8. Nbd2 {[%clk 0:02:55.9]}
8... h6 {[%clk 0:02:49.9]} 9. Nc4 {[%clk 0:02:54.3]} 9... d6 {[%clk 0:02:46.5]}
10. a4 {[%clk 0:02:39.8]} 10... Be6 {[%clk 0:02:45.6]} 11. Nh4 {[%clk
0:02:24.2]} 11... Qd7 {[%clk 0:02:36.4]} 12. Qe2 {[%clk 0:02:00]} 12... Rae8
{[%clk 0:02:24.6]} 13. Ne3 {[%clk 0:01:41]} 13... d5 {[%clk 0:02:19.3]} 14. exd5
{[%clk 0:01:40.1]} 14... Nxd5 {[%clk 0:02:18.8]} 15. Nc4 {[%clk 0:01:39.9]}
15... Nb6 {[%clk 0:02:15.2]} 16. Be3 {[%clk 0:01:27.3]} 16... Nxc4 {[%clk
0:01:19.7]} 17. dxc4 {[%clk 0:01:28.2]} 17... g5 {[%clk 0:01:19.5]} 18. Nf3
{[%clk 0:00:39.3]} 18... Bg4 {[%clk 0:01:17.4]} 19. h3 {[%clk 0:00:31]} 19...
Bxh3 {[%clk 0:01:13.2]} 20. Bxc5 {[%clk 0:00:27.1]} 20... e4 {[%clk 0:01:11.1]}
21. Nd4 {[%clk 0:00:23.8]} 21... Bxd4 {[%clk 0:01:07]} 22. cxd4 {[%clk 0:00:23]}
22... Nxd4 {[%clk 0:00:54.2]} 23. Qd1 {[%clk 0:00:22.2]} 23... Rd8 {[%clk
0:00:42.4]} 24. Bxf8 {[%clk 0:00:19]} 24... Kxf8 {[%clk 0:00:38.8]} 25. Qh5
{[%clk 0:00:19.1]} 25... Bxg2 {[%clk 0:00:26.6]} 26. Kxg2 {[%clk 0:00:20]} 26...
Qe6 {[%clk 0:00:24.8]} 27. Rad1 {[%clk 0:00:18.2]} 27... Kg7 {[%clk 0:00:24.5]}
28. Rfe1 {[%clk 0:00:16]} 28... Rd7 {[%clk 0:00:24]} 29. Rd2 {[%clk 0:00:12.1]}
29... Nf3 {[%clk 0:00:22.4]} 30. Rxd7 {[%clk 0:00:08.7]} 30... Nxe1+ {[%clk
0:00:21.9]} 31. Kf1 {[%clk 0:00:09]} 31... Qxd7 {[%clk 0:00:22.3]} 32. Kxe1
{[%clk 0:00:09.2]} 32... Qd3 {[%clk 0:00:22.4]} 33. Qe2 {[%clk 0:00:07.9]} 33...
Qb1+ {[%clk 0:00:22.3]} 34. Qd1 {[%clk 0:00:06.9]} 34... Qxd1+ {[%clk
0:00:22.5]} 35. Kxd1 {[%clk 0:00:07.1]} 35... a5 {[%clk 0:00:23.3]} 36. g4
{[%clk 0:00:05.6]} 36... Kf6 {[%clk 0:00:23.1]} 37. c5 {[%clk 0:00:03.8]} 37...
Ke5 {[%clk 0:00:23.3]} 38. Kd2 {[%clk 0:00:03.2]} 38... Kd5 {[%clk 0:00:23.4]}
39. Ke3 {[%clk 0:00:03.6]} 39... Kxc5 {[%clk 0:00:23.5]} 40. Kxe4 {[%clk
0:00:03.8]} 40... Kb4 {[%clk 0:00:24.2]} 41. Kf5 {[%clk 0:00:04.4]} 41... Kxa4
{[%clk 0:00:24.8]} 42. Kf6 {[%clk 0:00:05]} 42... Kb3 {[%clk 0:00:25.4]} 43.
Kxf7 {[%clk 0:00:05.5]} 43... Kxb2 {[%clk 0:00:25.8]} 44. Kg7 {[%clk 0:00:06.2]}
44... a4 {[%clk 0:00:26.1]} 45. Kxh6 {[%clk 0:00:07.1]} 45... a3 {[%clk
0:00:26.6]} 46. Kxg5 {[%clk 0:00:08]} 0-1

[Event "*** Titled Tuesday Blitz"]
[Site "Chess.com"]
[Date "2020.05.19"]
[Round "5"]
[White "sopo-tereladze"]
[Black "politeplayer"]
[Result "0-1"]
[WhiteElo "2324"]
[BlackElo "2213"]
[TimeControl "180+1"]
[EndTime "12:57:28 PDT"]
[Termination "politeplayer won by resignation"]

1. e4 {[%clk 0:03:00.9]} 1... c5 {[%clk 0:02:57.5]} 2. Nf3 {[%clk 0:03:00.3]}
2... d6 {[%clk 0:02:56.5]} 3. d4 {[%clk 0:02:59.3]} 3... cxd4 {[%clk 0:02:56.4]}
4. Qxd4 {[%clk 0:03:00.2]} 4... Nf6 {[%clk 0:02:54.3]} 5. Bg5 {[%clk 0:02:58.3]}
5... Nc6 {[%clk 0:02:53.3]} 6. Bb5 {[%clk 0:02:58.1]} 6... Bd7 {[%clk
0:02:52.6]} 7. Bxc6 {[%clk 0:02:57.4]} 7... Bxc6 {[%clk 0:02:52.6]} 8. Nc3
{[%clk 0:02:55.9]} 8... e6 {[%clk 0:02:52.3]} 9. O-O-O {[%clk 0:02:54.9]} 9...
Be7 {[%clk 0:02:51.9]} 10. Rhe1 {[%clk 0:02:51.3]} 10... O-O {[%clk 0:02:50.9]}
11. Kb1 {[%clk 0:02:50]} 11... Qa5 {[%clk 0:02:43.3]} 12. Qd2 {[%clk 0:02:47.4]}
12... Qa6 {[%clk 0:02:26.2]} 13. Nd4 {[%clk 0:02:43.3]} 13... Rfc8 {[%clk
0:02:22.5]} 14. g4 {[%clk 0:02:37.5]} 14... b5 {[%clk 0:02:18]} 15. Bxf6 {[%clk
0:02:27.8]} 15... Bxf6 {[%clk 0:02:14.2]} 16. g5 {[%clk 0:02:27.3]} 16... Be7
{[%clk 0:02:03.8]} 17. f3 {[%clk 0:02:05.4]} 17... b4 {[%clk 0:01:59.7]} 18.
Nce2 {[%clk 0:02:04.3]} 18... Rab8 {[%clk 0:01:58.5]} 19. Nxc6 {[%clk
0:02:03.1]} 19... Qxc6 {[%clk 0:01:50.4]} 20. Nd4 {[%clk 0:02:04]} 20... Qc5
{[%clk 0:01:49.5]} 21. f4 {[%clk 0:01:57.2]} 21... a5 {[%clk 0:01:46.4]} 22. f5
{[%clk 0:01:43.7]} 22... e5 {[%clk 0:01:37.3]} 23. Nb3 {[%clk 0:01:36.7]} 23...
Qc7 {[%clk 0:01:36.3]} 24. f6 {[%clk 0:01:36.3]} 24... Bf8 {[%clk 0:01:34.7]}
25. fxg7 {[%clk 0:01:29.6]} 25... Bxg7 {[%clk 0:01:34.7]} 26. Nc1 {[%clk
0:01:11]} 26... a4 {[%clk 0:01:31.7]} 27. Rf1 {[%clk 0:01:09.3]} 27... a3 {[%clk
0:01:21.2]} 28. b3 {[%clk 0:01:05.2]} 28... d5 {[%clk 0:01:17.8]} 29. exd5
{[%clk 0:00:48.6]} 29... e4 {[%clk 0:01:17.5]} 30. d6 {[%clk 0:00:48.3]} 30...
Qc5 {[%clk 0:01:11.6]} 31. Ne2 {[%clk 0:00:44.8]} 31... e3 {[%clk 0:00:52.5]}
32. Qd3 {[%clk 0:00:41.8]} 32... Qe5 {[%clk 0:00:51.9]} 33. Nd4 {[%clk
0:00:40.5]} 33... Rc3 {[%clk 0:00:34.4]} 34. Qe2 {[%clk 0:00:32.5]} 34... Qxd6
{[%clk 0:00:24]} 35. Nf5 {[%clk 0:00:30.1]} 35... Qe5 {[%clk 0:00:23.2]} 36.
Nxg7 {[%clk 0:00:29.4]} 36... Kxg7 {[%clk 0:00:15.4]} 37. Rd3 {[%clk 0:00:26.5]}
37... Rbc8 {[%clk 0:00:12.8]} 38. Rd7 {[%clk 0:00:16.3]} 38... Rxc2 {[%clk
0:00:10.9]} 39. Rdxf7+ {[%clk 0:00:15.1]} 39... Kg8 {[%clk 0:00:10.6]} 40. Qxc2
{[%clk 0:00:10.6]} 40... Rxc2 {[%clk 0:00:09]} 41. Kxc2 {[%clk 0:00:11.5]} 41...
Qc3+ {[%clk 0:00:08.9]} 0-1